[Event "Early-Titled-Tuesday-Blitz-November-28-2023"]
[Site "Chess.com"]
[Date "2023.11.28"]
[Round "1"]
[White "TheAlienParty"]
[Black "Aradhya2000"]
[Result "0-1"]
[WhiteElo "2387"]
[BlackElo "2690"]
[TimeControl "180+1"]
[EndTime "8:06:58 PST"]
[Termination "Aradhya2000 won by resignation"]

1. c4 {[%clk 0:02:58]} 1... Nf6 {[%clk 0:02:57]} 2. Nc3 {[%clk 0:02:55.7]} 2...
e5 {[%clk 0:02:55.3]} 3. Nf3 {[%clk 0:02:54.8]} 3... Nc6 {[%clk 0:02:55.1]} 4.
e4 {[%clk 0:02:54.1]} 4... Bb4 {[%clk 0:02:53.1]} 5. d3 {[%clk 0:02:52.7]} 5...
d6 {[%clk 0:02:51]} 6. a3 {[%clk 0:02:51.3]} 6... Bxc3+ {[%clk 0:02:51.3]} 7.
bxc3 {[%clk 0:02:50.4]} 7... O-O {[%clk 0:02:51.8]} 8. g3 {[%clk 0:02:49.5]}
8... a6 {[%clk 0:02:51.2]} 9. Bg2 {[%clk 0:02:49.1]} 9... b5 {[%clk 0:02:51.1]}
10. cxb5 {[%clk 0:02:47]} 10... axb5 {[%clk 0:02:52]} 11. O-O {[%clk 0:02:46]}
11... h6 {[%clk 0:02:50.5]} 12. a4 {[%clk 0:02:45]} 12... Be6 {[%clk 0:02:29.9]}
13. Bd2 {[%clk 0:02:35.1]} 13... bxa4 {[%clk 0:02:17.6]} 14. Rxa4 {[%clk
0:02:33.7]} 14... Qb8 {[%clk 0:02:17.8]} 15. Rxa8 {[%clk 0:02:08.9]} 15... Qxa8
{[%clk 0:02:18.7]} 16. Nh4 {[%clk 0:02:06.4]} 16... Qa7 {[%clk 0:02:13.8]} 17.
Be3 {[%clk 0:02:05]} 17... Qa3 {[%clk 0:02:13.3]} 18. Qc1 {[%clk 0:02:03.5]}
18... Ra8 {[%clk 0:02:12.6]} 19. h3 {[%clk 0:01:57.2]} 19... d5 {[%clk
0:02:02.8]} 20. Nf5 {[%clk 0:01:45.4]} 20... dxe4 {[%clk 0:02:01.5]} 21. Bxe4
{[%clk 0:01:36.9]} 21... Nxe4 {[%clk 0:01:59.2]} 22. dxe4 {[%clk 0:01:36.3]}
22... Qxc1 {[%clk 0:01:54.6]} 23. Rxc1 {[%clk 0:01:34.8]} 23... h5 {[%clk
0:01:47.3]} 24. Bc5 {[%clk 0:01:27]} 24... g6 {[%clk 0:01:31.5]} 25. Ne7+ {[%clk
0:01:23.7]} 25... Nxe7 {[%clk 0:01:31.7]} 26. Bxe7 {[%clk 0:01:23.6]} 26... Re8
{[%clk 0:01:32]} 27. Bc5 {[%clk 0:01:17.9]} 27... Bxh3 {[%clk 0:01:31.8]} 28.
Rb1 {[%clk 0:01:12.5]} 28... Bd7 {[%clk 0:01:30.1]} 29. f3 {[%clk 0:01:08]}
29... f5 {[%clk 0:01:29.8]} 30. exf5 {[%clk 0:01:06.8]} 30... gxf5 {[%clk
0:01:28.7]} 31. Kf2 {[%clk 0:01:07.4]} 31... Bc6 {[%clk 0:01:28.9]} 32. Ke3
{[%clk 0:01:06.7]} 32... Kf7 {[%clk 0:01:28.5]} 33. Ra1 {[%clk 0:00:59.2]} 33...
Ke6 {[%clk 0:01:23.9]} 34. c4 {[%clk 0:00:56.7]} 34... Rb8 {[%clk 0:01:20.8]}
35. Ra3 {[%clk 0:00:47.8]} 35... Rb1 {[%clk 0:01:19.9]} 36. Ke2 {[%clk
0:00:37.6]} 36... f4 {[%clk 0:01:05.9]} 37. gxf4 {[%clk 0:00:36.2]} 37... exf4
{[%clk 0:01:06.8]} 38. Bd4 {[%clk 0:00:31.9]} 38... Rb4 {[%clk 0:01:04.1]} 39.
Rc3 {[%clk 0:00:27.6]} 39... Rxc4 {[%clk 0:01:04.3]} 40. Rxc4 {[%clk 0:00:25]}
40... Bb5 {[%clk 0:01:04.6]} 41. Kd3 {[%clk 0:00:23.8]} 41... Kd5 {[%clk
0:01:04.6]} 42. Bf6 {[%clk 0:00:20.4]} 42... Bxc4+ {[%clk 0:01:03.1]} 43. Kd2
{[%clk 0:00:20.4]} 43... Ke6 {[%clk 0:00:54.4]} 44. Bd8 {[%clk 0:00:19.4]} 44...
c6 {[%clk 0:00:54.9]} 45. Bg5 {[%clk 0:00:19.3]} 45... Kf5 {[%clk 0:00:55.1]}
46. Be7 {[%clk 0:00:19.3]} 46... Ke5 {[%clk 0:00:54.5]} 47. Bg5 {[%clk 0:00:19]}
47... Bd5 {[%clk 0:00:54.7]} 48. Be7 {[%clk 0:00:18.9]} 48... Bxf3 {[%clk
0:00:54.3]} 0-1

[Event "Early-Titled-Tuesday-Blitz-November-28-2023"]
[Site "Chess.com"]
[Date "2023.11.28"]
[Round "1"]
[White "Elprofessor21"]
[Black "ilushka"]
[Result "0-1"]
[WhiteElo "2657"]
[BlackElo "2389"]
[TimeControl "180+1"]
[EndTime "8:06:58 PST"]
[Termination "ilushka won by resignation"]

1. e4 {[%clk 0:02:58.4]} 1... e5 {[%clk 0:02:56]} 2. Nf3 {[%clk 0:02:57.3]} 2...
Nc6 {[%clk 0:02:55.3]} 3. Bb5 {[%clk 0:02:55.4]} 3... Nf6 {[%clk 0:02:55.1]} 4.
d3 {[%clk 0:02:53.5]} 4... Bc5 {[%clk 0:02:53.4]} 5. O-O {[%clk 0:02:53]} 5...
d6 {[%clk 0:02:50.9]} 6. Be3 {[%clk 0:02:52.6]} 6... Bb6 {[%clk 0:02:42.6]} 7.
h3 {[%clk 0:02:41.9]} 7... O-O {[%clk 0:02:41.4]} 8. a4 {[%clk 0:02:39.9]} 8...
a6 {[%clk 0:02:36.2]} 9. Bxc6 {[%clk 0:02:35.1]} 9... bxc6 {[%clk 0:02:37.1]}
10. a5 {[%clk 0:02:35.1]} 10... Bxe3 {[%clk 0:02:26.8]} 11. fxe3 {[%clk
0:02:36]} 11... c5 {[%clk 0:02:26]} 12. Nbd2 {[%clk 0:02:32]} 12... Ne8 {[%clk
0:02:17.1]} 13. Nc4 {[%clk 0:02:28.1]} 13... g6 {[%clk 0:02:09.5]} 14. Qd2
{[%clk 0:02:08.6]} 14... Ng7 {[%clk 0:02:06.8]} 15. d4 {[%clk 0:02:03.7]} 15...
cxd4 {[%clk 0:01:58.3]} 16. exd4 {[%clk 0:02:02.9]} 16... exd4 {[%clk
0:01:58.1]} 17. Nxd4 {[%clk 0:01:57.9]} 17... Ne6 {[%clk 0:01:39.8]} 18. Ne3
{[%clk 0:01:46.8]} 18... Qh4 {[%clk 0:01:25.8]} 19. Nd5 {[%clk 0:01:43.2]} 19...
f5 {[%clk 0:00:16.7]} 20. Nxe6 {[%clk 0:01:36.8]} 20... Bxe6 {[%clk 0:00:11.4]}
21. Nxc7 {[%clk 0:01:37]} 21... Bc4 {[%clk 0:00:11]} 22. Rf4 {[%clk 0:01:33.1]}
22... Qg5 {[%clk 0:00:03.9]} 23. Nxa8 {[%clk 0:01:33]} 23... Rxa8 {[%clk
0:00:04.1]} 24. b3 {[%clk 0:01:30.3]} 24... Be6 {[%clk 0:00:03.6]} 25. Qxd6
{[%clk 0:01:30.4]} 25... Re8 {[%clk 0:00:03]} 26. exf5 {[%clk 0:01:24.6]} 26...
Bxf5 {[%clk 0:00:03]} 27. Qd5+ {[%clk 0:01:25.1]} 27... Kg7 {[%clk 0:00:02.7]}
28. Qd4+ {[%clk 0:01:25.6]} 28... Kg8 {[%clk 0:00:02.6]} 29. Raf1 {[%clk
0:01:24.5]} 29... Re2 {[%clk 0:00:02.9]} 30. R4f2 {[%clk 0:01:23.7]} 30... Re3
{[%clk 0:00:02.4]} 31. Qe4 {[%clk 0:01:21.5]} 31... Rxe4 {[%clk 0:00:02.5]} 32.
g4 {[%clk 0:01:18.9]} 32... Be6 {[%clk 0:00:02.1]} 33. Kh2 {[%clk 0:01:16.3]}
33... Bxg4 {[%clk 0:00:02.3]} 34. hxg4 {[%clk 0:01:16.2]} 34... Rxg4 {[%clk
0:00:03.2]} 35. Rf8+ {[%clk 0:01:14.7]} 35... Kg7 {[%clk 0:00:03.7]} 36. R8f7+
{[%clk 0:01:15.6]} 36... Kh6 {[%clk 0:00:04]} 37. R7f3 {[%clk 0:01:15.8]} 37...
Rh4+ {[%clk 0:00:03.6]} 38. Rh3 {[%clk 0:01:16.5]} 38... Rxh3+ {[%clk
0:00:03.9]} 39. Kxh3 {[%clk 0:01:17.4]} 39... Qc5 {[%clk 0:00:03.8]} 40. c4
{[%clk 0:01:15.3]} 40... Qxa5 {[%clk 0:00:04]} 41. Rf3 {[%clk 0:01:15.9]} 41...
Qc5 {[%clk 0:00:04.3]} 42. Kg3 {[%clk 0:01:16]} 42... a5 {[%clk 0:00:04.8]} 43.
Rc3 {[%clk 0:01:14.9]} 43... Kg5 {[%clk 0:00:05]} 44. Rf3 {[%clk 0:01:14.6]}
44... h5 {[%clk 0:00:05.4]} 45. Kg2 {[%clk 0:01:14.2]} 45... h4 {[%clk
0:00:05.6]} 46. Kf1 {[%clk 0:01:14.3]} 46... Kg4 {[%clk 0:00:05.8]} 47. Kg2
{[%clk 0:01:13.3]} 47... g5 {[%clk 0:00:05.8]} 48. Rd3 {[%clk 0:01:12.8]} 48...
Qe5 {[%clk 0:00:05.4]} 49. Kf2 {[%clk 0:01:10.6]} 49... Qb2+ {[%clk 0:00:05.1]}
50. Ke3 {[%clk 0:01:09.3]} 50... h3 {[%clk 0:00:05.4]} 51. c5 {[%clk 0:01:09.6]}
51... h2 {[%clk 0:00:05.8]} 52. c6 {[%clk 0:01:08.9]} 52... h1=Q {[%clk
0:00:05.9]} 0-1

[Event "Early-Titled-Tuesday-Blitz-November-28-2023"]
[Site "Chess.com"]
[Date "2023.11.28"]
[Round "1"]
[White "mishanick"]
[Black "ArtemDyachuk"]
[Result "1-0"]
[WhiteElo "3053"]
[BlackElo "2520"]
[TimeControl "180+1"]
[EndTime "8:06:59 PST"]
[Termination "mishanick won by resignation"]

1. d4 {[%clk 0:02:57.9]} 1... Nf6 {[%clk 0:02:58.6]} 2. c4 {[%clk 0:02:58.5]}
2... e6 {[%clk 0:02:57.7]} 3. Nc3 {[%clk 0:02:59]} 3... c5 {[%clk 0:02:57.7]} 4.
d5 {[%clk 0:02:59.1]} 4... exd5 {[%clk 0:02:58.1]} 5. cxd5 {[%clk 0:03:00]} 5...
d6 {[%clk 0:02:58.4]} 6. e4 {[%clk 0:03:00.7]} 6... g6 {[%clk 0:02:58.3]} 7. h3
{[%clk 0:03:00.5]} 7... Bg7 {[%clk 0:02:57.8]} 8. Nf3 {[%clk 0:03:01.3]} 8...
O-O {[%clk 0:02:58.2]} 9. Bd3 {[%clk 0:03:02.1]} 9... b5 {[%clk 0:02:58.8]} 10.
Nxb5 {[%clk 0:03:02.1]} 10... Re8 {[%clk 0:02:58.2]} 11. O-O {[%clk 0:03:01.2]}
11... Nxe4 {[%clk 0:02:58.3]} 12. Bf4 {[%clk 0:03:00.4]} 12... a6 {[%clk
0:02:54.8]} 13. Na3 {[%clk 0:02:58.5]} 13... Bb7 {[%clk 0:02:30.9]} 14. Nc4
{[%clk 0:02:44.7]} 14... Nd7 {[%clk 0:01:47]} 15. Bc2 {[%clk 0:02:07.5]} 15...
a5 {[%clk 0:01:14.8]} 16. Re1 {[%clk 0:02:06.6]} 16... Ba6 {[%clk 0:01:15.2]}
17. Nxd6 {[%clk 0:01:43.4]} 17... Nxd6 {[%clk 0:01:15.3]} 18. Bxd6 {[%clk
0:01:43.8]} 18... Qb6 {[%clk 0:01:15.7]} 19. Bg3 {[%clk 0:01:32.4]} 19... Qxb2
{[%clk 0:01:06.3]} 20. Rb1 {[%clk 0:01:31.6]} 20... Rxe1+ {[%clk 0:01:05.4]} 21.
Nxe1 {[%clk 0:01:32.5]} 21... Qf6 {[%clk 0:00:50.7]} 22. Ba4 {[%clk 0:01:31.6]}
22... Ne5 {[%clk 0:00:44.5]} 23. d6 {[%clk 0:01:31.3]} 23... Rd8 {[%clk
0:00:39.3]} 24. Rb6 {[%clk 0:01:31.3]} 24... Bc4 {[%clk 0:00:35.6]} 25. Qd2
{[%clk 0:01:28.3]} 25... Be6 {[%clk 0:00:32.4]} 26. Bb5 {[%clk 0:01:19.6]} 26...
h5 {[%clk 0:00:27.2]} 27. Qxa5 {[%clk 0:01:15.9]} 27... h4 {[%clk 0:00:26.1]}
28. Bh2 {[%clk 0:01:09.1]} 28... Qg5 {[%clk 0:00:26.2]} 29. f4 {[%clk
0:01:03.5]} 29... Qf5 {[%clk 0:00:14.7]} 30. fxe5 {[%clk 0:01:02.1]} 30... Bh6
{[%clk 0:00:12.4]} 31. Nf3 {[%clk 0:00:55.9]} 31... Qb1+ {[%clk 0:00:09]} 32.
Qe1 {[%clk 0:00:45.7]} 32... Qxa2 {[%clk 0:00:09.4]} 33. Qxh4 {[%clk 0:00:41.6]}
33... Be3+ {[%clk 0:00:08.3]} 34. Kh1 {[%clk 0:00:41.6]} 34... Qb1+ {[%clk
0:00:06.4]} 35. Bg1 {[%clk 0:00:42.1]} 35... Ra8 {[%clk 0:00:06.9]} 36. d7
{[%clk 0:00:36.4]} 36... Qd1 {[%clk 0:00:03]} 37. Rd6 {[%clk 0:00:34.7]} 37...
Qxg1+ {[%clk 0:00:01.7]} 38. Nxg1 {[%clk 0:00:34.5]} 38... Ra1 {[%clk
0:00:02.6]} 39. d8=Q+ {[%clk 0:00:34.8]} 1-0

[Event "Early-Titled-Tuesday-Blitz-November-28-2023"]
[Site "Chess.com"]
[Date "2023.11.28"]
[Round "1"]
[White "Franmu14"]
[Black "Shivananda1964"]
[Result "1-0"]
[WhiteElo "2709"]
[BlackElo "2403"]
[TimeControl "180+1"]
[EndTime "8:06:59 PST"]
[Termination "Franmu14 won on time"]

1. e4 {[%clk 0:02:59.6]} 1... Nc6 {[%clk 0:02:59]} 2. Nc3 {[%clk 0:03:00.5]}
2... e5 {[%clk 0:02:56.3]} 3. Nf3 {[%clk 0:03:01]} 3... g6 {[%clk 0:02:55.7]} 4.
d4 {[%clk 0:02:59]} 4... exd4 {[%clk 0:02:55.6]} 5. Nxd4 {[%clk 0:02:59.9]} 5...
Bg7 {[%clk 0:02:55.6]} 6. Be3 {[%clk 0:03:00.5]} 6... Nf6 {[%clk 0:02:55]} 7.
Nxc6 {[%clk 0:03:01]} 7... bxc6 {[%clk 0:02:54.5]} 8. e5 {[%clk 0:03:01.6]} 8...
Ng8 {[%clk 0:02:50.8]} 9. f4 {[%clk 0:03:02.1]} 9... Nh6 {[%clk 0:02:44.6]} 10.
Qf3 {[%clk 0:03:02.1]} 10... O-O {[%clk 0:02:36]} 11. O-O-O {[%clk 0:03:02.6]}
11... d5 {[%clk 0:02:25]} 12. h3 {[%clk 0:02:58.5]} 12... f6 {[%clk 0:02:13.1]}
13. Bc4 {[%clk 0:02:33.1]} 13... Kh8 {[%clk 0:01:48.4]} 14. Bc5 {[%clk
0:02:07.6]} 14... fxe5 {[%clk 0:01:39.9]} 15. Bxf8 {[%clk 0:01:59.8]} 15... Qxf8
{[%clk 0:01:39.9]} 16. Nxd5 {[%clk 0:01:38]} 16... cxd5 {[%clk 0:01:36.3]} 17.
Qxd5 {[%clk 0:01:38.9]} 17... Rb8 {[%clk 0:01:30.7]} 18. fxe5 {[%clk 0:01:35.8]}
18... Bb7 {[%clk 0:01:17]} 19. Qd4 {[%clk 0:01:03.2]} 19... Nf5 {[%clk
0:01:08.2]} 20. Qc3 {[%clk 0:01:02.6]} 20... Bxg2 {[%clk 0:00:57.3]} 21. Rhe1
{[%clk 0:01:02.6]} 21... Qc5 {[%clk 0:00:49]} 22. Rd7 {[%clk 0:00:47]} 22... Re8
{[%clk 0:00:24.6]} 23. Bf7 {[%clk 0:00:39.3]} 23... Qxc3 {[%clk 0:00:21.6]} 24.
bxc3 {[%clk 0:00:40.2]} 24... Bh6+ {[%clk 0:00:14.4]} 25. Kb2 {[%clk 0:00:30.2]}
25... Rb8+ {[%clk 0:00:14.2]} 26. Bb3 {[%clk 0:00:29.3]} 26... Ne3 {[%clk
0:00:04.3]} 27. a4 {[%clk 0:00:20.8]} 27... Nc4+ {[%clk 0:00:04.3]} 28. Ka2
{[%clk 0:00:20.9]} 28... Bd2 {[%clk 0:00:02.3]} 29. Re2 {[%clk 0:00:19.9]} 29...
Bxc3 {[%clk 0:00:02]} 30. Rxg2 {[%clk 0:00:16.5]} 1-0

[Event "Early-Titled-Tuesday-Blitz-November-28-2023"]
[Site "Chess.com"]
[Date "2023.11.28"]
[Round "1"]
[White "Zapateado"]
[Black "Kolle05"]
[Result "0-1"]
[WhiteElo "2356"]
[BlackElo "2659"]
[TimeControl "180+1"]
[EndTime "8:06:59 PST"]
[Termination "Kolle05 won on time"]

1. c4 {[%clk 0:02:02.9]} 1... Nf6 {[%clk 0:02:59.3]} 2. Nc3 {[%clk 0:02:01.3]}
2... g6 {[%clk 0:02:59.3]} 3. e4 {[%clk 0:01:59.3]} 3... d6 {[%clk 0:02:58.3]}
4. g3 {[%clk 0:01:59.7]} 4... Bg7 {[%clk 0:02:58.3]} 5. Bg2 {[%clk 0:02:00.2]}
5... O-O {[%clk 0:02:59.2]} 6. Nge2 {[%clk 0:02:00.7]} 6... c5 {[%clk
0:03:00.1]} 7. O-O {[%clk 0:02:01]} 7... Nc6 {[%clk 0:03:00.8]} 8. d3 {[%clk
0:02:01.6]} 8... Ne8 {[%clk 0:02:59.9]} 9. Be3 {[%clk 0:02:01.4]} 9... Nc7
{[%clk 0:02:59.8]} 10. d4 {[%clk 0:02:02]} 10... cxd4 {[%clk 0:02:58.5]} 11.
Nxd4 {[%clk 0:02:02.9]} 11... Nxd4 {[%clk 0:02:56.2]} 12. Bxd4 {[%clk
0:02:03.5]} 12... Bxd4 {[%clk 0:02:56.4]} 13. Qxd4 {[%clk 0:02:04.2]} 13... e5
{[%clk 0:02:57.1]} 14. Qd2 {[%clk 0:01:58.8]} 14... Be6 {[%clk 0:02:39]} 15. b3
{[%clk 0:01:53.7]} 15... Qe7 {[%clk 0:02:34.6]} 16. Rad1 {[%clk 0:01:46.1]}
16... Rad8 {[%clk 0:02:32.4]} 17. h3 {[%clk 0:01:27.9]} 17... a6 {[%clk
0:02:24]} 18. f4 {[%clk 0:01:07.6]} 18... f6 {[%clk 0:02:09.5]} 19. f5 {[%clk
0:01:06.3]} 19... Bf7 {[%clk 0:02:09.4]} 20. g4 {[%clk 0:00:47]} 20... b5 {[%clk
0:02:06.7]} 21. cxb5 {[%clk 0:00:43.4]} 21... axb5 {[%clk 0:02:01.3]} 22. h4
{[%clk 0:00:42.2]} 22... b4 {[%clk 0:01:47.6]} 23. Nd5 {[%clk 0:00:33.9]} 23...
Nxd5 {[%clk 0:01:47]} 24. exd5 {[%clk 0:00:34.5]} 24... e4 {[%clk 0:01:39.5]}
25. Qxb4 {[%clk 0:00:25.9]} 25... e3 {[%clk 0:01:37.4]} 26. Rde1 {[%clk
0:00:22.5]} 26... Rfe8 {[%clk 0:01:32.6]} 27. Qd4 {[%clk 0:00:19.9]} 27... Ra8
{[%clk 0:01:08]} 28. a4 {[%clk 0:00:16.7]} 28... Rab8 {[%clk 0:01:05]} 29. b4
{[%clk 0:00:16.2]} 29... Rbc8 {[%clk 0:00:56.3]} 30. fxg6 {[%clk 0:00:15.4]}
30... Bxg6 {[%clk 0:00:55.9]} 31. Qxf6 {[%clk 0:00:15.9]} 31... Qa7 {[%clk
0:00:53.6]} 32. Kh2 {[%clk 0:00:14.2]} 32... Rc2 {[%clk 0:00:42.2]} 33. Kh1
{[%clk 0:00:10.4]} 33... Qd7 {[%clk 0:00:32]} 34. h5 {[%clk 0:00:06.6]} 34...
Qxg4 {[%clk 0:00:31.1]} 0-1

[Event "Early-Titled-Tuesday-Blitz-November-28-2023"]
[Site "Chess.com"]
[Date "2023.11.28"]
[Round "1"]
[White "pirulillo"]
[Black "jk13"]
[Result "0-1"]
[WhiteElo "2299"]
[BlackElo "2615"]
[TimeControl "180+1"]
[EndTime "8:07:01 PST"]
[Termination "jk13 won by checkmate"]

1. e4 {[%clk 0:02:58.9]} 1... d6 {[%clk 0:03:00.2]} 2. d4 {[%clk 0:02:56.4]}
2... Nf6 {[%clk 0:03:00.7]} 3. Nc3 {[%clk 0:02:53.1]} 3... e5 {[%clk 0:02:59.2]}
4. Nf3 {[%clk 0:02:51.2]} 4... Nbd7 {[%clk 0:02:58.5]} 5. Bc4 {[%clk 0:02:49]}
5... Be7 {[%clk 0:02:58.7]} 6. O-O {[%clk 0:02:47.8]} 6... O-O {[%clk
0:02:53.6]} 7. Re1 {[%clk 0:02:46.7]} 7... c6 {[%clk 0:02:54]} 8. a4 {[%clk
0:02:45.9]} 8... h6 {[%clk 0:02:53.7]} 9. h3 {[%clk 0:02:42.4]} 9... Nh7 {[%clk
0:02:52.7]} 10. b3 {[%clk 0:02:37.6]} 10... Ng5 {[%clk 0:02:51.7]} 11. Nxg5
{[%clk 0:02:36.1]} 11... Bxg5 {[%clk 0:02:52.6]} 12. Bb2 {[%clk 0:02:35.6]}
12... a5 {[%clk 0:02:51.3]} 13. Ne2 {[%clk 0:02:33]} 13... Nf6 {[%clk
0:02:49.4]} 14. Ng3 {[%clk 0:02:21.9]} 14... Bf4 {[%clk 0:02:46.4]} 15. Qf3
{[%clk 0:02:14.7]} 15... Qc7 {[%clk 0:02:34.4]} 16. Rad1 {[%clk 0:02:11.3]}
16... Re8 {[%clk 0:02:26.3]} 17. Nf1 {[%clk 0:01:50.2]} 17... Bg5 {[%clk
0:02:23.4]} 18. dxe5 {[%clk 0:01:37.2]} 18... dxe5 {[%clk 0:02:21.1]} 19. Ba3
{[%clk 0:01:35.1]} 19... Be6 {[%clk 0:02:14.9]} 20. Bd6 {[%clk 0:01:32.3]} 20...
Qc8 {[%clk 0:02:08.2]} 21. Bxe6 {[%clk 0:01:24.4]} 21... Qxe6 {[%clk 0:02:07]}
22. Ng3 {[%clk 0:01:18.3]} 22... g6 {[%clk 0:02:06.5]} 23. Ba3 {[%clk
0:01:00.5]} 23... Red8 {[%clk 0:02:03.3]} 24. Rxd8+ {[%clk 0:00:59.1]} 24...
Rxd8 {[%clk 0:02:02.2]} 25. Rd1 {[%clk 0:01:00]} 25... Rd7 {[%clk 0:01:59.7]}
26. Rd3 {[%clk 0:00:56.6]} 26... Rxd3 {[%clk 0:01:49.3]} 27. Qxd3 {[%clk
0:00:56.2]} 27... Nd7 {[%clk 0:01:40.2]} 28. Nf1 {[%clk 0:00:54.9]} 28... h5
{[%clk 0:01:32.9]} 29. Kh2 {[%clk 0:00:52.8]} 29... Kg7 {[%clk 0:01:31.5]} 30.
g3 {[%clk 0:00:52]} 30... h4 {[%clk 0:01:30.6]} 31. Ne3 {[%clk 0:00:47.8]} 31...
hxg3+ {[%clk 0:01:29.3]} 32. fxg3 {[%clk 0:00:48.7]} 32... Bxe3 {[%clk
0:01:28.3]} 33. Qxe3 {[%clk 0:00:49.2]} 33... b6 {[%clk 0:01:27.6]} 34. Bc1
{[%clk 0:00:42.7]} 34... Kf8 {[%clk 0:01:21.6]} 35. Ba3+ {[%clk 0:00:38]} 35...
Kg8 {[%clk 0:01:18.9]} 36. Kg2 {[%clk 0:00:35.7]} 36... c5 {[%clk 0:01:17]} 37.
Bb2 {[%clk 0:00:27.4]} 37... Qd6 {[%clk 0:01:16.4]} 38. Qe2 {[%clk 0:00:26]}
38... Nf8 {[%clk 0:01:14.4]} 39. h4 {[%clk 0:00:25.7]} 39... Ne6 {[%clk
0:01:11.4]} 40. h5 {[%clk 0:00:25.6]} 40... Kg7 {[%clk 0:01:05.8]} 41. hxg6
{[%clk 0:00:24.9]} 41... fxg6 {[%clk 0:01:06.4]} 42. Bc1 {[%clk 0:00:20.1]}
42... Nd4 {[%clk 0:01:03.3]} 43. Qd2 {[%clk 0:00:18.5]} 43... Qf6 {[%clk
0:01:02]} 44. Qh6+ {[%clk 0:00:18.4]} 44... Kg8 {[%clk 0:01:01.3]} 45. Bg5
{[%clk 0:00:15.9]} 45... Qf3+ {[%clk 0:00:59.8]} 46. Kh2 {[%clk 0:00:15.6]}
46... Qxe4 {[%clk 0:00:53.6]} 47. Bf6 {[%clk 0:00:14.1]} 47... Qe2+ {[%clk
0:00:52.1]} 48. Kg1 {[%clk 0:00:08.5]} 48... Nf3+ {[%clk 0:00:51.1]} 49. Kh1
{[%clk 0:00:08]} 49... Qf1# {[%clk 0:00:52]} 0-1

[Event "Early-Titled-Tuesday-Blitz-November-28-2023"]
[Site "Chess.com"]
[Date "2023.11.28"]
[Round "1"]
[White "sergeikim"]
[Black "kereswasbest"]
[Result "1-0"]
[WhiteElo "2596"]
[BlackElo "2252"]
[TimeControl "180+1"]
[EndTime "8:07:03 PST"]
[Termination "sergeikim won by resignation"]

1. d4 {[%clk 0:03:00.9]} 1... d5 {[%clk 0:02:57.6]} 2. c4 {[%clk 0:03:00.9]}
2... e6 {[%clk 0:02:56.5]} 3. Nc3 {[%clk 0:03:01]} 3... Be7 {[%clk 0:02:55.4]}
4. Nf3 {[%clk 0:03:01.1]} 4... Nf6 {[%clk 0:02:54.6]} 5. Bf4 {[%clk 0:03:00.9]}
5... O-O {[%clk 0:02:51.6]} 6. e3 {[%clk 0:03:01.1]} 6... a6 {[%clk 0:02:50]} 7.
c5 {[%clk 0:03:01.2]} 7... Nc6 {[%clk 0:02:43.3]} 8. h3 {[%clk 0:03:00.5]} 8...
Re8 {[%clk 0:02:43.2]} 9. a3 {[%clk 0:02:59.1]} 9... Bd7 {[%clk 0:02:43]} 10. b4
{[%clk 0:02:56.2]} 10... b5 {[%clk 0:02:43.6]} 11. Be2 {[%clk 0:02:51]} 11...
Bf8 {[%clk 0:02:38.9]} 12. O-O {[%clk 0:02:49.9]} 12... Ne7 {[%clk 0:02:39.4]}
13. a4 {[%clk 0:02:47.1]} 13... c6 {[%clk 0:02:21.4]} 14. Ne5 {[%clk 0:02:44.3]}
14... Ng6 {[%clk 0:02:19.8]} 15. Nxg6 {[%clk 0:02:43.2]} 15... hxg6 {[%clk
0:02:17.7]} 16. Qc2 {[%clk 0:02:39.4]} 16... Qc8 {[%clk 0:01:58]} 17. Ra2 {[%clk
0:02:36.2]} 17... Qb7 {[%clk 0:01:58.1]} 18. Rfa1 {[%clk 0:02:34.5]} 18... Rec8
{[%clk 0:01:58.5]} 19. Qb2 {[%clk 0:02:29.7]} 19... Be7 {[%clk 0:01:52.1]} 20.
Qa3 {[%clk 0:02:27]} 20... Be8 {[%clk 0:01:42.7]} 21. axb5 {[%clk 0:02:26.1]}
21... cxb5 {[%clk 0:01:35]} 22. Qc1 {[%clk 0:02:19.2]} 22... Bc6 {[%clk
0:01:35.4]} 23. Qf1 {[%clk 0:02:18]} 23... Nh5 {[%clk 0:01:33.1]} 24. Bh2 {[%clk
0:02:16.4]} 24... f5 {[%clk 0:01:29.2]} 25. Be5 {[%clk 0:02:06.7]} 25... Nf6
{[%clk 0:01:22.2]} 26. f3 {[%clk 0:02:03.1]} 26... Nd7 {[%clk 0:01:20.4]} 27.
Bf4 {[%clk 0:01:59.6]} 27... Bf6 {[%clk 0:01:19]} 28. Qf2 {[%clk 0:01:58.8]}
28... e5 {[%clk 0:01:16.7]} 29. Bg3 {[%clk 0:01:56.4]} 29... Re8 {[%clk
0:01:14.5]} 30. Bh2 {[%clk 0:01:55]} 30... f4 {[%clk 0:01:12.1]} 31. e4 {[%clk
0:01:44.1]} 31... exd4 {[%clk 0:01:06.4]} 32. Nxd5 {[%clk 0:01:44]} 32... Bxd5
{[%clk 0:01:06.4]} 33. exd5 {[%clk 0:01:44.3]} 33... d3 {[%clk 0:01:06.3]} 34.
c6 {[%clk 0:01:42.8]} 34... Qc7 {[%clk 0:01:00.7]} 35. Bxd3 {[%clk 0:01:32.3]}
35... Ne5 {[%clk 0:00:47.8]} 36. Be4 {[%clk 0:01:25.1]} 36... g5 {[%clk
0:00:45.3]} 37. Rxa6 {[%clk 0:01:22.2]} 37... Rxa6 {[%clk 0:00:42.4]} 38. Rxa6
{[%clk 0:01:22.5]} 38... Nc4 {[%clk 0:00:43.3]} 39. Kh1 {[%clk 0:01:15.8]} 39...
Ne3 {[%clk 0:00:40]} 40. Qa2 {[%clk 0:01:14.5]} 40... Qd6 {[%clk 0:00:36.1]} 41.
c7 {[%clk 0:01:11.8]} 41... Qxc7 {[%clk 0:00:31]} 42. d6+ {[%clk 0:01:11.6]}
42... Qf7 {[%clk 0:00:31.8]} 43. d7 {[%clk 0:01:02.7]} 43... Rd8 {[%clk
0:00:28.9]} 44. Bc6 {[%clk 0:01:00.4]} 44... Qxa2 {[%clk 0:00:25]} 45. Rxa2
{[%clk 0:01:00.1]} 45... Nc4 {[%clk 0:00:20.3]} 46. Bxb5 {[%clk 0:00:58.3]}
46... Nd6 {[%clk 0:00:15.1]} 47. Bc6 {[%clk 0:00:57.6]} 47... Bd4 {[%clk
0:00:13.3]} 48. Bg1 {[%clk 0:00:56.1]} 48... Bxg1 {[%clk 0:00:12]} 49. Kxg1
{[%clk 0:00:56.2]} 49... Kf7 {[%clk 0:00:12.7]} 50. Re2 {[%clk 0:00:56.1]} 50...
Nf5 {[%clk 0:00:10.2]} 51. Re8 {[%clk 0:00:55.4]} 1-0